fUST/lending_fUST_20251006
["ID","MTS","AMOUNT","RATE_DAILY","PERIOD"]
[389522975,1759695048019,-863.89,0.00018082,2]
[389522976,1759695048028,-721.64,0.00018082,2]
[389522977,1759695048038,-612.5345989,0.00018082,2]
[389522978,1759695048047,-707.49,0.00018082,2]
[389522979,1759695048056,-976.74,0.00018082,2]
[389522980,1759695048065,-500.0,0.00018082,2]
[389522981,1759695048074,-511.43,0.00018082,2]
[389522982,1759695048083,-500.0,0.00018082,2]
[389522983,1759695048093,-500.0,0.00018082,2]
[389522984,1759695048102,-500.0,0.00018082,2]
[389522985,1759695048111,-1869.26,0.00018082,2]
[389522986,1759695048120,-1547.33,0.00018082,2]
[389522987,1759695048129,-500.0,0.00018082,2]
[389522988,1759695048138,-500.0,0.00018082,2]
[389522989,1759695048147,-604.66,0.00018082,2]
[389522990,1759695048157,-151.0,0.00018082,2]
[389522991,1759695048166,-151.0,0.00018082,2]
[389522992,1759695048175,-178.71656,0.00018082,2]
[389522993,1759695048184,-151.0,0.00018082,2]
[389522994,1759695048193,-178.71656,0.00018082,2]
[389522995,1759695048202,-151.0,0.00018082,2]
[389522996,1759695048211,-151.0,0.00018082,2]
[389522997,1759695048222,-178.71656,0.00018082,2]
[389522998,1759695048235,-178.71656,0.00018082,2]
[389522999,1759695048245,-583.22,0.00018082,2]
[389523000,1759695048254,-500.0,0.00018082,2]
[389523001,1759695048262,-500.0,0.00018082,2]
[389523002,1759695048271,-536.42,0.00018082,2]
[389523003,1759695048280,-500.0,0.00018082,2]
[389523004,1759695048289,-151.0,0.00018082,2]
[389523005,1759695048298,-599.18,0.00018082,2]
[389523006,1759695048307,-502.23,0.00018082,2]
[389523007,1759695048316,-500.0,0.00018082,2]
[389523008,1759695048325,-1237.88,0.00018082,2]
[389523009,1759695048334,-151.0,0.00018082,2]
[389523010,1759695048343,-223.135702,0.00018082,2]
[389523011,1759695048352,-151.0,0.00018082,2]
[389523012,1759695048362,-655.58,0.00018082,2]
[389523013,1759695048371,-1549.5,0.00018082,2]
[389523014,1759695048381,-151.0,0.00018082,2]
[389523015,1759695048390,-724.58,0.00018082,2]
[389523016,1759695048399,-1258.7,0.00018082,2]
[389523017,1759695048409,-151.0,0.00018082,2]
[389523018,1759695048418,-151.0,0.00018082,2]
[389523019,1759695048427,-1537.77,0.00018082,2]
[389523020,1759695048436,-662.32,0.00018082,2]
[389523021,1759695048445,-919.03,0.00018082,2]
[389523022,1759695048453,-881.64,0.00018082,2]
[389523023,1759695048463,-500.0,0.00018082,2]
[389523024,1759695048472,-520.64601958,0.00018082,2]
[389523025,1759695048482,-766.59,0.00018082,2]
[389523026,1759695048492,-1306.74,0.00018082,2]
[389523027,1759695048502,-824.99,0.00018082,2]
[389523028,1759695048510,-590.06,0.00018082,2]
[389523029,1759695048520,-3252.46,0.00018082,2]
[389523030,1759695048529,-500.0,0.00018082,2]
[389523031,1759695048538,-500.0,0.00018082,2]
[389523032,1759695048547,-500.0,0.00018082,2]
[389523033,1759695048556,-4336.03,0.00018082,2]
[389523034,1759695048565,-500.0,0.00018082,2]
[389523035,1759695048574,-2436.75,0.00018082,2]
[389523036,1759695048583,-151.0,0.00018082,2]
[389523037,1759695048593,-751.24,0.00018082,2]
[389523038,1759695048601,-186.73993794,0.00018082,2]
[389523039,1759695048610,-3912.33,0.00018082,2]
[389523040,1759695048619,-642.43,0.00018082,2]
[389523041,1759695048628,-500.0,0.00018082,2]
[389523042,1759695048637,-678.45,0.00018082,2]
[389523043,1759695048647,-4275.21,0.00018082,2]
[389523044,1759695048657,-2964.26,0.00018082,2]
[389523045,1759695048666,-151.0,0.00018082,2]
[389523046,1759695048676,-500.0,0.00018082,2]
[389523047,1759695048685,-506.96,0.00018082,2]
[389523048,1759695048695,-151.0,0.00018082,2]
[389523049,1759695048704,-923.94,0.00018082,2]
[389523050,1759695048713,-500.0,0.00018082,2]
[389523051,1759695048723,-851.72,0.00018082,2]
[389523052,1759695048732,-2190.96,0.00018082,2]
[389523053,1759695048742,-539.26,0.00018082,2]
[389523054,1759695048751,-2351.75,0.00018082,2]
[389523055,1759695048760,-888.96,0.00018082,2]
[389523056,1759695048769,-500.86,0.00018082,2]
[389523057,1759695048778,-546.79,0.00018082,2]
[389523058,1759695048788,-2122.18,0.00018082,2]
[389523059,1759695048798,-500.0,0.00018082,2]
[389523060,1759695048807,-500.0,0.00018082,2]
[389523061,1759695048816,-1504.64,0.00018082,2]
[389523062,1759695048825,-1247.62,0.00018082,2]
[389523063,1759695048834,-1475.61,0.00018082,2]
[389523064,1759695048843,-151.0,0.00018082,2]
[389523065,1759695048853,-151.0,0.00018082,2]
[389523066,1759695048862,-2419.8,0.00018082,2]
[389523067,1759695048871,-151.0,0.00018082,2]
[389523068,1759695048880,-807.49,0.00018082,2]
[389523069,1759695048889,-500.0,0.00018082,2]
[389523070,1759695048898,-1212.48,0.00018082,2]
[389523071,1759695048908,-2841.752848,0.00018082,2]
[389523072,1759695048917,-2841.752848,0.00018082,2]
[389523073,1759695048926,-500.0,0.00018082,2]
[389523074,1759695048935,-2841.752848,0.00018082,2]
[389523075,1759695048945,-2841.752848,0.00018082,2]
[389523076,1759695048954,-852.69,0.00018082,2]
[389523077,1759695048963,-2750.11,0.00018082,2]
[389523078,1759695048972,-656.32,0.00018082,2]
[389523079,1759695048982,-500.0,0.00018082,2]
[389523080,1759695048991,-756.76,0.00018082,2]
[389523081,1759695049000,-952.04,0.00018082,2]
[389523082,1759695049010,-151.0,0.00018082,2]
[389523083,1759695049019,-4932.75,0.00018082,2]
[389523084,1759695049028,-1018.2,0.00018082,2]
[389523085,1759695049037,-537.82,0.00018082,2]
[389523086,1759695049046,-500.0,0.00018082,2]
[389523087,1759695049055,-2363.06,0.00018082,2]
[389523088,1759695049064,-539.14,0.00018082,2]
[389523089,1759695049073,-3195.95,0.00018082,2]
[389523090,1759695049082,-500.0,0.00018082,2]
[389523091,1759695049091,-500.0,0.00018082,2]
[389523092,1759695049100,-730.2,0.00018082,2]
[389523093,1759695049109,-1064.47,0.00018082,2]
[389523094,1759695049118,-500.0,0.00018082,2]
[389523095,1759695049127,-1265.83,0.00018082,2]
[389523096,1759695049136,-1707.66,0.00018082,2]
[389523097,1759695049145,-151.0,0.00018082,2]
[389523098,1759695049154,-1011.9,0.00018082,2]
[389523099,1759695049164,-500.0,0.00018082,2]
[389523100,1759695049173,-1070.51,0.00018082,2]
[389523101,1759695049182,-579.1,0.00018082,2]
[389523102,1759695049192,-5043.8711998,0.00018082,2]
[389523103,1759695049201,-151.0,0.00018106,2]
[389523104,1759695049211,-1878.0,0.00018112,2]
[389523105,1759695049220,-167.83565487,0.0001813,2]
[389523106,1759695049233,-2516.10206639,0.00018209,2]
[389523107,1759695049400,-3442.81453381,0.00018209,2]
[389523108,1759695049410,-151.0,0.00018209,2]
[389523109,1759695049419,-151.0,0.00018209,2]
[389523110,1759695049428,-151.0,0.00018209,2]
[389523111,1759695049437,-151.0,0.00018209,2]
[389523112,1759695049446,-151.0,0.00018209,2]
[389523113,1759695049455,-40.45520475,0.00018209,2]
[389523114,1759695049587,-500.0,0.00016438,2]
[389523115,1759695049596,-500.0,0.00016712,2]
[389523116,1759695049606,-190.56776654,0.0001726,2]
[389523117,1759695049615,-110.54479525,0.00018209,2]
[389523118,1759695049625,-151.0,0.00018209,2]
[389523119,1759695049635,-151.0,0.00018209,2]
[389523120,1759695049644,-151.0,0.00018209,2]
[389523121,1759695049653,-151.0,0.00018209,2]
[389523122,1759695049663,-151.0,0.00018209,2]
[389523123,1759695049673,-151.0,0.00018209,2]
[389523124,1759695049682,-151.0,0.00018209,2]
[389523125,1759695049692,-151.0,0.00018209,2]
[389523126,1759695049701,-151.0,0.00018209,2]
[389523127,1759695049710,-151.0,0.00018209,2]
[389523128,1759695049719,-151.0,0.00018209,2]
[389523129,1759695049728,-1037.88743821,0.00018212,2]
[389523130,1759695049993,-383.41,0.00016438,2]
[389523131,1759695050028,-116.59,0.00016438,2]
[389523132,1759695050037,-550.17,0.00016438,2]
[389523133,1759695050048,-500.0,0.00016438,2]
[389523134,1759695050057,-500.0,0.00016438,2]
[389523135,1759695050067,-500.0,0.00016712,2]
[389523136,1759695050077,-580.6,0.00016712,2]
[389523137,1759695050086,-500.0,0.00016712,2]
[389523138,1759695050096,-414.73,0.00016986,2]
[389523139,1759695050105,-500.0,0.00016986,2]
[389523140,1759695050114,-351.22,0.00017524,3]
[389523141,1759695050124,-840.11256179,0.00018212,2]
[389523142,1759695050133,-151.0,0.00018221,2]
[389523143,1759695050142,-151.0,0.00018221,2]
[389523144,1759695050152,-202.314797,0.00018221,2]
[389523145,1759695050166,-150.0,0.00018221,2]
[389523146,1759695050176,-150.0,0.00018221,2]
[389523147,1759695050185,-212.814,0.00018221,2]
[389523148,1759695050195,-229.054,0.00018221,2]
[389523149,1759695050204,-250.0,0.00018221,2]
[389523150,1759695050213,-151.463,0.00018221,2]
[389523151,1759695050222,-263.428,0.00018221,2]
[389523152,1759695050232,-295.0,0.00018221,2]
[389523153,1759695050245,-293.75,0.00018221,2]
[389523154,1759695050255,-998.209,0.00018221,2]
[389523155,1759695050266,-108.99241936,0.00018221,2]
[389523157,1759695066034,666.0,0.00015888,2]
[389523163,1759695261746,470.26104412,0.0002002,9]
[389523164,1759695372062,323.164983,0.00015504,2]
[389523165,1759695431556,271.5388169,0.00023288,30]
[389523167,1759695905993,547.86721581,0.00015738,2]
[389523168,1759695907849,2189.27739439,0.00015738,2]
[389523183,1759696031123,-300.0,0.00016338,2]
[389523184,1759696031144,-191.90916047,0.00016437,2]
[389523185,1759696031164,-389.0,0.00016437,2]
[389523186,1759696031185,-854.33419241,0.00016437,2]
[389523187,1759696079421,1126.66339934,0.0002,10]
[389523232,1759696232469,-1200.0,0.00016437,2]
[389523234,1759696232478,-300.0,0.00016437,2]
[389523236,1759696232487,-500.0,0.00016438,2]
[389523238,1759696232496,-500.0,0.00016438,2]
[389523240,1759696232505,-500.0,0.00016438,2]
[389523242,1759696232514,-500.0,0.00016438,2]
[389523244,1759696232524,-500.0,0.00016438,2]
[389523246,1759696232532,-500.0,0.00016438,2]
[389523249,1759696232545,-500.0,0.00016438,2]
[389523251,1759696232555,-500.0,0.00016438,2]
[389523253,1759696232564,-500.0,0.00016438,2]
[389523255,1759696232574,-500.0,0.00016438,2]
[389523257,1759696232583,-404.26229822,0.00016438,2]
[389523259,1759696232592,-500.0,0.00016438,2]
[389523261,1759696232601,-500.0,0.00016438,2]
[389523263,1759696232610,-500.0,0.00016438,2]
[389523265,1759696232619,-500.0,0.00016438,2]
[389523267,1759696232629,-1329.44,0.00016438,2]
[389523270,1759696232637,-500.0,0.00016438,2]
[389523273,1759696232646,-500.0,0.00016438,2]
[389523276,1759696232655,-603.82,0.00016438,2]
[389523279,1759696232664,-500.0,0.00016438,2]
[389523282,1759696232675,-500.0,0.00016438,2]
[389523285,1759696232685,-500.0,0.00016438,2]
[389523288,1759696232694,-500.0,0.00016438,2]
[389523291,1759696232703,-866.6,0.00016438,2]
[389523294,1759696232712,-500.0,0.00016438,2]
[389523296,1759696232721,-500.0,0.00016438,2]
[389523298,1759696232730,-903.49,0.00016438,2]
[389523300,1759696232739,-500.0,0.00016438,2]
[389523302,1759696232748,-500.0,0.00016438,2]
[389523304,1759696232758,-753.86,0.00016438,2]
[389523306,1759696232767,-500.0,0.00016438,2]
[389523308,1759696232776,-535.36,0.00016438,2]
[389523310,1759696232790,-500.0,0.00016438,2]
[389523312,1759696232800,-500.0,0.00016438,2]
[389523314,1759696232809,-1057.0,0.00016438,2]
[389523316,1759696232819,-500.0,0.00016438,2]
[389523318,1759696232829,-500.0,0.00016438,2]
[389523320,1759696232838,-500.0,0.00016438,2]
[389523322,1759696232847,-907.23,0.00016438,2]
[389523324,1759696232856,-500.0,0.00016438,2]
[389523326,1759696232866,-500.0,0.00016438,2]
[389523328,1759696232876,-500.0,0.00016438,2]
[389523330,1759696232885,-500.0,0.00016438,2]
[389523332,1759696232894,-719.91,0.00016438,2]
[389523334,1759696232903,-599.77,0.00016438,2]
[389523336,1759696232912,-608.5,0.00016438,2]
[389523338,1759696232922,-589.57,0.00016438,2]
[389523340,1759696232931,-500.0,0.00016438,2]
[389523342,1759696232941,-500.0,0.00016438,2]
[389523344,1759696232950,-601.37,0.00016438,2]
[389523346,1759696232960,-500.0,0.00016438,2]
[389523348,1759696232969,-813.95,0.00016438,2]
[389523350,1759696232978,-500.0,0.00016438,2]
[389523352,1759696232987,-500.0,0.00016438,2]
[389523354,1759696232999,-500.0,0.00016438,2]
[389523356,1759696233009,-500.0,0.00016438,2]
[389523358,1759696233018,-500.0,0.00016438,2]
[389523360,1759696233028,-500.0,0.00016438,2]
[389523362,1759696233037,-1289.44,0.00016438,2]
[389523365,1759696233047,-500.0,0.00016438,2]
[389523367,1759696233058,-500.0,0.00016438,2]
[389523369,1759696233067,-500.0,0.00016438,2]
[389523371,1759696233076,-503.88,0.00016438,2]
[389523373,1759696233086,-500.0,0.00016438,2]
[389523375,1759696233095,-500.0,0.00016438,2]
[389523377,1759696233104,-500.0,0.00016438,2]
[389523379,1759696233114,-734.8,0.00016438,2]
[389523381,1759696233123,-500.0,0.00016438,2]
[389523383,1759696233132,-500.0,0.00016438,2]
[389523385,1759696233141,-500.0,0.00016438,2]
[389523387,1759696233151,-622.16,0.00016438,2]
[389523389,1759696233160,-500.0,0.00016438,2]
[389523391,1759696233170,-546.32,0.00016438,2]
[389523393,1759696233179,-638.82,0.00016438,2]
[389523395,1759696233189,-687.49,0.00016438,2]
[389523396,1759696233198,-1281.47,0.00016438,2]
[389523397,1759696233207,-500.0,0.00016438,2]
[389523398,1759696233217,-500.0,0.00016438,2]
[389523399,1759696233226,-2030.62,0.00016438,2]
[389523400,1759696233235,-500.0,0.00016438,2]
[389523401,1759696233244,-1825.8,0.00016438,2]
[389523402,1759696233253,-500.0,0.00016438,2]
[389523403,1759696233262,-500.0,0.00016438,2]
[389523404,1759696233271,-3562.67,0.00016438,2]
[389523405,1759696233280,-373.99307859,0.00016438,2]
[389523406,1759696233292,-126.00692141,0.00016438,2]
[389523407,1759696233301,-765.86,0.00016438,2]
[389523408,1759696233311,-709.77,0.00016438,2]
[389523409,1759696233320,-491.39422875,0.00016438,2]
[389523410,1759696233329,-1088.95,0.00016438,2]
[389523411,1759696233338,-1361.22,0.00016438,2]
[389523412,1759696233347,-500.0,0.00016438,2]
[389523413,1759696233356,-2710.39,0.00016438,2]
[389523414,1759696233366,-500.0,0.00016438,2]
[389523415,1759696233375,-551.93,0.00016438,2]
[389523416,1759696233384,-1511.41885952,0.00016438,2]
[389523417,1759696233395,-257.07114048,0.00016438,2]
[389523418,1759696233404,-500.0,0.00016438,2]
[389523419,1759696233413,-771.43,0.00016438,2]
[389523420,1759696233423,-1381.98,0.00016438,2]
[389523422,1759696233432,-500.0,0.00016438,2]
[389523424,1759696233442,-500.0,0.00016438,2]
[389523426,1759696233451,-2117.33,0.00016438,2]
[389523428,1759696233460,-500.0,0.00016438,2]
[389523430,1759696233469,-500.0,0.00016438,2]
[389523432,1759696233478,-500.0,0.00016438,2]
[389523434,1759696233487,-500.0,0.00016438,2]
[389523436,1759696233496,-574.28,0.00016438,2]
[389523438,1759696233505,-657.33,0.00016438,2]
[389523440,1759696233516,-500.0,0.00016438,2]
[389523442,1759696233525,-2796.46,0.00016438,2]
[389523444,1759696233535,-777.84,0.00016438,2]
[389523446,1759696233544,-1291.16,0.00016438,2]
[389523448,1759696233553,-500.0,0.00016438,2]
[389523450,1759696233562,-500.0,0.00016438,2]
[389523452,1759696233571,-2593.73,0.00016438,2]
[389523454,1759696233580,-706.55,0.00016438,2]
[389523456,1759696233589,-2067.68,0.00016438,2]
[389523458,1759696233598,-646.24,0.00016438,2]
[389523460,1759696233607,-500.0,0.00016438,2]
[389523462,1759696233616,-500.0,0.00016438,2]
[389523464,1759696233625,-500.0,0.00016438,2]
[389523466,1759696233633,-693.69,0.00016438,2]
[389523468,1759696233642,-500.0,0.00016438,2]
[389523470,1759696233651,-500.0,0.00016438,2]
[389523472,1759696233660,-885.41,0.00016438,2]
[389523474,1759696233669,-500.0,0.00016438,2]
[389523476,1759696233678,-1151.08,0.00016438,2]
[389523478,1759696233688,-1635.61,0.00016438,2]
[389523480,1759696233697,-506.71,0.00016438,2]
[389523482,1759696233707,-625.95,0.00016438,2]
[389523484,1759696233716,-1060.92,0.00016438,2]
[389523486,1759696233725,-500.0,0.00016438,2]
[389523488,1759696233734,-808.44,0.00016438,2]
[389523490,1759696233743,-500.0,0.00016438,2]
[389523492,1759696233752,-1715.53,0.00016438,2]
[389523494,1759696233761,-987.68,0.00016438,2]
[389523496,1759696233770,-500.0,0.00016438,2]
[389523498,1759696233779,-2057.78,0.00016438,2]
[389523499,1759696233789,-500.0,0.00016438,2]
[389523501,1759696233801,-500.0,0.00016438,2]
[389523503,1759696233811,-643.79,0.00016438,2]
[389523504,1759696233820,-500.0,0.00016438,2]
[389523506,1759696233829,-500.0,0.00016438,2]
[389523507,1759696233839,-500.0,0.00016438,2]
[389523508,1759696233848,-500.0,0.00016438,2]
[389523509,1759696233857,-500.0,0.00016438,2]
[389523511,1759696233867,-4584.6,0.00016438,2]
[389523512,1759696233877,-500.0,0.00016438,2]
[389523514,1759696233887,-500.0,0.00016438,2]
[389523515,1759696233896,-2685.58,0.00016438,2]
[389523517,1759696233906,-500.0,0.00016438,2]
[389523519,1759696233915,-500.0,0.00016438,2]
[389523520,1759696233924,-519.89,0.00016438,2]
[389523521,1759696233934,-500.0,0.00016438,2]
[389523522,1759696233944,-581.87,0.00016438,2]
[389523523,1759696233953,-994.82,0.00016438,2]
[389523524,1759696233963,-500.0,0.00016438,2]
[389523525,1759696233972,-500.0,0.00016438,2]
[389523526,1759696233982,-500.0,0.00016438,2]
[389523527,1759696233991,-1202.1,0.00016438,2]
[389523528,1759696234001,-1662.96,0.00016438,2]
[389523529,1759696234011,-1747.24237682,0.00016438,2]
[389523530,1759696234023,-2443.80762318,0.00016438,2]
[389523531,1759696234032,-500.0,0.00016438,2]
[389523532,1759696234042,-10.29237682,0.00016438,2]
[389523533,1759696234053,-1226.47762318,0.00016438,2]
[389523534,1759696234062,-0.32115002,0.00016438,2]
[389523535,1759696234073,-352.68,0.00016438,2]
[389523554,1759696238423,-346.71884998,0.00016438,2]
[389523556,1759696238432,-1084.39,0.00016438,2]
[389523558,1759696238442,-450.55712572,0.00016438,2]
[389523560,1759696238452,-500.0,0.00016438,2]
[389523562,1759696238461,-561.91941582,0.00016438,2]
[389523565,1759696238482,-599.38058418,0.00016438,2]
[389523567,1759696238491,-622.5,0.00016438,2]
[389523569,1759696238500,-3974.01,0.00016438,2]
[389523571,1759696238510,-1648.65,0.00016438,2]
[389523573,1759696238519,-500.0,0.00016438,2]
[389523575,1759696238529,-500.0,0.00016438,2]
[389523577,1759696238538,-701.42,0.00016438,2]
[389523579,1759696238547,-500.0,0.00016438,2]
[389523581,1759696238557,-1500.0,0.00016438,2]
[389523583,1759696238566,-182.50993306,0.00016566,2]
[389523585,1759696238575,-568.87,0.00016702,3]
[389523587,1759696238584,-284.43,0.00016702,3]
[389523589,1759696238594,-853.33,0.00016702,3]
[389523591,1759696238603,-500.0,0.00016712,2]
[389523593,1759696238612,-500.0,0.00016712,2]
[389523595,1759696238622,-364.83798122,0.00016712,2]
[389523597,1759696238631,-500.0,0.00016712,2]
[389523599,1759696238641,-500.0,0.00016712,2]
[389523601,1759696238650,-500.0,0.00016712,2]
[389523603,1759696238659,-500.0,0.00016712,2]
[389523605,1759696238668,-500.0,0.00016712,2]
[389523607,1759696238678,-500.0,0.00016712,2]
[389523609,1759696238687,-500.0,0.00016712,2]
[389523611,1759696238697,-500.0,0.00016712,2]
[389523613,1759696238706,-1329.44,0.00016712,2]
[389523615,1759696238715,-500.0,0.00016712,2]
[389523617,1759696238724,-500.0,0.00016712,2]
[389523619,1759696238734,-603.82,0.00016712,2]
[389523621,1759696238743,-500.0,0.00016712,2]
[389523623,1759696238752,-500.0,0.00016712,2]
[389523624,1759696238762,-500.0,0.00016712,2]
[389523626,1759696238771,-500.0,0.00016712,2]
[389523628,1759696238781,-866.6,0.00016712,2]
[389523629,1759696238796,-637.38191991,0.00016712,2]
[389523631,1759696238806,-500.0,0.00016712,2]
[389523633,1759696238815,-903.49,0.00016712,2]
[389523635,1759696238826,-500.0,0.00016712,2]
[389523636,1759696238836,-500.0,0.00016712,2]
[389523638,1759696238845,-753.86,0.00016712,2]
[389523640,1759696238854,-500.0,0.00016712,2]
[389523642,1759696238864,-535.36,0.00016712,2]
[389523644,1759696238874,-165.15678399,0.00016712,2]
[389523645,1759696238884,-500.0,0.00016712,2]
[389523647,1759696238893,-1057.0,0.00016712,2]
[389523649,1759696238903,-500.0,0.00016712,2]
[389523651,1759696238912,-500.0,0.00016712,2]
[389523653,1759696238921,-500.0,0.00016712,2]
[389523654,1759696238931,-907.23,0.00016712,2]
[389523656,1759696238943,-500.0,0.00016712,2]
[389523657,1759696238952,-500.0,0.00016712,2]
[389523659,1759696238962,-500.0,0.00016712,2]
[389523661,1759696238971,-500.0,0.00016712,2]
[389523668,1759696239175,-719.91,0.00016712,2]
[389523669,1759696239186,-599.77,0.00016712,2]
[389523670,1759696239198,-608.5,0.00016712,2]
[389523671,1759696239209,-589.57,0.00016712,2]
[389523672,1759696239219,-500.0,0.00016712,2]
[389523673,1759696239229,-500.0,0.00016712,2]
[389523674,1759696239239,-601.37,0.00016712,2]
[389523675,1759696239248,-500.0,0.00016712,2]
[389523676,1759696239258,-813.95,0.00016712,2]
[389523677,1759696239267,-500.0,0.00016712,2]
[389523678,1759696239277,-500.0,0.00016712,2]
[389523679,1759696239286,-500.0,0.00016712,2]
[389523680,1759696239296,-500.0,0.00016712,2]
[389523681,1759696239305,-452.93258141,0.00016712,2]
[389523682,1759696239318,-47.06741859,0.00016712,2]
[389523683,1759696239328,-500.0,0.00016712,2]
[389523684,1759696239337,-1289.44,0.00016712,2]
[389523685,1759696239347,-500.0,0.00016712,2]
[389523686,1759696239356,-500.0,0.00016712,2]
[389523687,1759696239366,-503.88,0.00016712,2]
[389523688,1759696239375,-500.0,0.00016712,2]
[389523689,1759696239385,-734.8,0.00016712,2]
[389523690,1759696239395,-500.0,0.00016712,2]
[389523691,1759696239404,-500.0,0.00016712,2]
[389523692,1759696239413,-500.0,0.00016712,2]
[389523693,1759696239423,-622.16,0.00016712,2]
[389523694,1759696239432,-223.73197615,0.00016712,2]
[389523695,1759696239617,-276.26802385,0.00016712,2]
[389523696,1759696239626,-546.32,0.00016712,2]
[389523697,1759696239636,-687.49,0.00016712,2]
[389523698,1759696239645,-1281.47,0.00016712,2]
[389523699,1759696239654,-500.0,0.00016712,2]
[389523700,1759696239663,-500.0,0.00016712,2]
[389523701,1759696239672,-2030.62,0.00016712,2]
[389523702,1759696239681,-500.0,0.00016712,2]
[389523703,1759696239691,-1825.8,0.00016712,2]
[389523704,1759696239701,-260.28427647,0.00016712,2]
[389523705,1759696239710,-500.0,0.00016712,2]
[389523706,1759696239720,-3562.67,0.00016712,2]
[389523707,1759696239729,-500.0,0.00016712,2]
[389523708,1759696239739,-765.86,0.00016712,2]
[389523709,1759696239748,-709.77,0.00016712,2]
[389523710,1759696239757,-1088.95,0.00016712,2]
[389523711,1759696239767,-1361.22,0.00016712,2]
[389523712,1759696239775,-500.0,0.00016712,2]
[389523713,1759696239784,-2710.39,0.00016712,2]
[389523714,1759696239798,-500.0,0.00016712,2]
[389523715,1759696239808,-551.93,0.00016712,2]
[389523716,1759696239817,-1768.49,0.00016712,2]
[389523717,1759696239826,-500.0,0.00016712,2]
[389523718,1759696239838,-771.43,0.00016712,2]
[389523719,1759696239848,-1381.98,0.00016712,2]
[389523720,1759696239857,-500.0,0.00016712,2]
[389523721,1759696239867,-500.0,0.00016712,2]
[389523722,1759696239877,-2117.33,0.00016712,2]
[389523723,1759696239887,-500.0,0.00016712,2]
[389523724,1759696239896,-500.0,0.00016712,2]
[389523725,1759696239905,-500.0,0.00016712,2]
[389523726,1759696239915,-500.0,0.00016712,2]
[389523727,1759696239924,-574.28,0.00016712,2]
[389523728,1759696239934,-657.33,0.00016712,2]
[389523729,1759696239945,-500.0,0.00016712,2]
[389523730,1759696239954,-2796.46,0.00016712,2]
[389523731,1759696239964,-777.84,0.00016712,2]
[389523732,1759696239973,-1291.16,0.00016712,2]
[389523733,1759696239983,-500.0,0.00016712,2]
[389523734,1759696239992,-2593.73,0.00016712,2]
[389523735,1759696240001,-706.55,0.00016712,2]
[389523736,1759696240011,-2067.68,0.00016712,2]
[389523737,1759696240020,-646.24,0.00016712,2]
[389523738,1759696240029,-500.0,0.00016712,2]
[389523739,1759696240039,-500.0,0.00016712,2]
[389523740,1759696240048,-500.0,0.00016712,2]
[389523741,1759696240057,-693.69,0.00016712,2]
[389523742,1759696240067,-500.0,0.00016712,2]
[389523743,1759696240076,-500.0,0.00016712,2]
[389523744,1759696240085,-885.41,0.00016712,2]
[389523745,1759696240095,-500.0,0.00016712,2]
[389523746,1759696240104,-1151.08,0.00016712,2]
[389523747,1759696240114,-1635.61,0.00016712,2]